fUST/lending_fUST_20240619
["ID","MTS","AMOUNT","RATE_DAILY","PERIOD"]
[329897067,1718803842562,-500.0,0.00019178,2]
[329897068,1718803842571,-500.0,0.00019178,2]
[329897069,1718803842581,-500.0,0.00019178,2]
[329897070,1718803842591,-500.0,0.00019178,2]
[329897071,1718803842601,-500.0,0.00019178,2]
[329897072,1718803842610,-500.0,0.00019178,2]
[329897073,1718803842620,-500.0,0.00019178,2]
[329897074,1718803842630,-500.0,0.00019178,2]
[329897075,1718803842639,-500.0,0.00019178,2]
[329897076,1718803842650,-500.0,0.00019178,2]
[329897077,1718803842661,-500.0,0.00019178,2]
[329897078,1718803842670,-500.0,0.00019178,2]
[329897079,1718803842680,-500.0,0.00019178,2]
[329897080,1718803842690,-500.0,0.00019178,2]
[329897081,1718803842701,-500.0,0.00019178,2]
[329897082,1718803842711,-500.0,0.00019178,2]
[329897083,1718803842721,-500.0,0.00019178,2]
[329897084,1718803842731,-500.0,0.00019178,2]
[329897085,1718803842740,-500.0,0.00019178,2]
[329897086,1718803842750,-500.0,0.00019178,2]
[329897087,1718803842760,-500.0,0.00019178,2]
[329897088,1718803842769,-500.0,0.00019178,2]
[329897089,1718803842779,-163.68764876,0.00019178,2]
[329897090,1718803842789,-525.81807214,0.00019178,2]
[329897091,1718803842800,-500.0,0.00019178,2]
[329897092,1718803842810,-500.0,0.00019178,2]
[329897093,1718803842819,-500.0,0.00019178,2]
[329897094,1718803842829,-500.0,0.00019178,2]
[329897095,1718803842839,-500.0,0.00019178,2]
[329897096,1718803842849,-500.0,0.00019178,2]
[329897097,1718803842858,-500.0,0.00019178,2]
[329897098,1718803842867,-500.0,0.00019178,2]
[329897099,1718803842876,-500.0,0.00019178,2]
[329897100,1718803842885,-500.0,0.00019178,2]
[329897101,1718803842895,-500.0,0.00019178,2]
[329897102,1718803842905,-500.0,0.00019178,2]
[329897103,1718803842914,-500.0,0.00019178,2]
[329897104,1718803842925,-500.0,0.00019178,2]
[329897105,1718803842935,-500.0,0.00019178,2]
[329897106,1718803842948,-500.0,0.00019178,2]
[329897107,1718803842957,-500.0,0.00019178,2]
[329897108,1718803842967,-500.0,0.00019178,2]
[329897109,1718803842977,-500.0,0.00019178,2]
[329897110,1718803842986,-500.0,0.00019178,2]
[329897111,1718803842996,-500.0,0.00019178,2]
[329897112,1718803843005,-500.0,0.00019178,2]
[329897113,1718803843015,-500.0,0.00019178,2]
[329897114,1718803843025,-416.03800562,0.00019178,2]
[329897115,1718803843035,-500.0,0.00019178,2]
[329897116,1718803843045,-500.0,0.00019178,2]
[329897117,1718803843055,-500.0,0.00019178,2]
[329897118,1718803843068,-500.0,0.00019178,2]
[329897119,1718803843079,-500.0,0.00019178,2]
[329897120,1718803843089,-500.0,0.00019178,2]
[329897121,1718803843099,-500.0,0.00019178,2]
[329897122,1718803843108,-500.0,0.00019178,2]
[329897123,1718803843118,-500.0,0.00019178,2]
[329897124,1718803843128,-413.68764873,0.00019178,2]
[329897125,1718803843137,-500.0,0.00019178,2]
[329897126,1718803843149,-500.0,0.00019178,2]
[329897127,1718803843159,-500.0,0.00019178,2]
[329897128,1718803843168,-500.0,0.00019178,2]
[329897129,1718803843178,-500.0,0.00019178,2]
[329897130,1718803843187,-500.0,0.00019178,2]
[329897131,1718803843198,-500.0,0.00019178,2]
[329897132,1718803843207,-500.0,0.00019178,2]
[329897133,1718803843217,-500.0,0.00019178,2]
[329897134,1718803843226,-500.0,0.00019178,2]
[329897135,1718803843236,-500.0,0.00019178,2]
[329897136,1718803843246,-500.0,0.00019178,2]
[329897137,1718803843257,-500.0,0.00019178,2]
[329897138,1718803843267,-500.0,0.00019178,2]
[329897139,1718803843277,-500.0,0.00019178,2]
[329897140,1718803843286,-500.0,0.00019178,2]
[329897141,1718803843296,-500.0,0.00019178,2]
[329897142,1718803843306,-500.0,0.00019178,2]
[329897143,1718803843316,-500.0,0.00019178,2]
[329897144,1718803843325,-500.0,0.00019178,2]
[329897145,1718803843335,-500.0,0.00019178,2]
[329897146,1718803843344,-500.0,0.00019178,2]
[329897147,1718803843353,-500.0,0.00019178,2]
[329897148,1718803843363,-500.0,0.00019178,2]
[329897149,1718803843374,-187.7036799,0.00019178,2]
[329897150,1718803843383,-500.0,0.00019178,2]
[329897151,1718803843392,-500.0,0.00019178,2]
[329897152,1718803843402,-645.93316085,0.00019178,2]
[329897153,1718803843412,-151.0,0.00019178,2]
[329897154,1718803843422,-151.0,0.00019178,2]
[329897156,1718803843536,-300.86225126,0.00019178,2]
[329897157,1718803843546,-151.0,0.00019178,2]
[329897158,1718803843555,-151.0,0.00019178,2]
[329897159,1718803843565,-151.0,0.00019178,2]
[329897160,1718803843574,-151.0,0.00019178,2]
[329897161,1718803843583,-151.0,0.00019178,2]
[329897162,1718803843591,-151.0,0.00019178,2]
[329897163,1718803843601,-151.0,0.00019178,2]
[329897164,1718803843611,-300.317894,0.00019178,2]
[329897165,1718803843621,-190.547023,0.00019178,2]
[329897166,1718803843630,-180.613335,0.00019178,2]
[329897167,1718803843640,-151.0,0.00019178,2]
[329897168,1718803843651,-245.028482,0.00019178,2]
[329897171,1718803843660,-587.0,0.00019268,2]
[329897174,1718803843669,-587.0,0.00019509,2]
[329897177,1718803843679,-167.30657264,0.0002,2]
[329897180,1718803843688,-1000.000001,0.0002,2]
[329897183,1718803843700,-151.0,0.0002,2]
[329897186,1718803843709,-151.0,0.0002,2]
[329897188,1718803843718,-823.0,0.00021064,2]
[329897190,1718803843727,-750.0,0.00021096,2]
[329897192,1718803843737,-374.626727,0.00021096,2]
[329897194,1718803843746,-823.0,0.0002146,2]
[329897196,1718803843756,-2000.0,0.00021917,7]
[329897198,1718803843765,-2000.0,0.00021917,7]
[329897200,1718803843774,-2000.0,0.00021917,7]
[329897202,1718803843784,-2000.0,0.00021917,7]
[329897203,1718803843793,-2000.0,0.00021917,7]
[329897205,1718803843803,-2000.0,0.00021917,7]
[329897207,1718803843812,-2000.0,0.00021917,7]
[329897209,1718803843822,-2000.0,0.00021917,7]
[329897210,1718803843832,-2000.0,0.00021917,7]
[329897212,1718803843842,-2000.0,0.00021917,7]
[329897215,1718803843850,-2000.0,0.00021917,7]
[329897218,1718803843859,-2000.0,0.00021917,7]
[329897220,1718803843869,-2000.0,0.00021917,7]
[329897221,1718803843879,-2000.0,0.00021917,7]
[329897222,1718803843889,-2000.0,0.00021917,7]
[329897223,1718803843898,-2000.0,0.00021917,7]
[329897224,1718803843907,-2000.0,0.00021917,7]
[329897225,1718803843917,-2000.0,0.00021917,7]
[329897226,1718803843927,-2000.0,0.00021917,7]
[329897227,1718803843938,-2000.0,0.00021917,7]
[329897228,1718803843948,-2000.0,0.00021917,7]
[329897229,1718803843959,-2000.0,0.00021917,7]
[329897230,1718803843968,-1270.47329148,0.00021917,7]
[329897231,1718803843978,-166.666666,0.00021918,2]
[329897232,1718803843987,-263.34127311,0.00022,2]
[329897233,1718803843997,-622.86333086,0.00022185,2]
[329897234,1718803844006,-166.666666,0.00022431,2]
[329897235,1718803844016,-340.43546,0.00022542,2]
[329897236,1718803844025,-166.666666,0.00022944,2]
[329897237,1718803844035,-620.14316654,0.00023294,2]
[329897239,1718803844044,-166.666666,0.00023456,2]
[329897241,1718803844053,-711.0,0.00023606,2]
[329897243,1718803844070,-3886.93713234,0.000239,2]
[329897244,1718803844080,-166.666666,0.00023969,2]
[329897245,1718803844089,-166.666666,0.00024482,2]
[329897246,1718803844098,-208.939736,0.00024658,2]
[329897247,1718803844111,-200.0,0.00024658,15]
[329897248,1718803844120,-155.62654704,0.00024749,3]
[329897249,1718803844130,-241.282938,0.00024999,2]
[329897250,1718803844140,-162.974928,0.00024999,2]
[329897251,1718803844149,-402.10409234,0.00025,2]
[329897252,1718803844159,-762.62906153,0.00025,2]
[329897253,1718803844168,-878.17128837,0.00025,2]
[329897254,1718803844178,-615.37066309,0.00025,2]
[329897255,1718803844188,-225.27800044,0.00025,2]
[329897256,1718803844199,-300.448704,0.00025,2]
[329897257,1718803844209,-1000.0,0.00025,2]
[329897258,1718803844218,-160.0,0.00025,2]
[329897259,1718803844228,-445.65032939,0.00025548,2]
[329897260,1718803844237,-750.0,0.00027195,2]
[329897261,1718803844248,-374.626727,0.00027195,2]
[329897262,1718803844260,-174.86877295,0.000274,2]
[329897263,1718803844270,-154.81422293,0.000275,30]
[329897264,1718803844279,-267.87185097,0.00028,2]
[329897265,1718803844289,-183.3832124,0.00028,2]
[329897266,1718803844299,-150.0,0.00028272,2]
[329897267,1718803844308,-1750.0,0.00028272,2]
[329897268,1718803844318,-160.0,0.0002849,30]
[329897269,1718803844327,-163.15129649,0.0002849,2]
[329897270,1718803844337,-3886.93713234,0.000289,2]
[329897272,1718803844347,-783.13124269,0.00028995,2]
[329897273,1718803844357,-5615.90123145,0.00029,30]
[329897274,1718803844890,-2645.71635795,0.00016122,2]
[329897275,1718803844900,-6535.3565883,0.00029,30]
[329897276,1718803844910,-153.0,0.0002918,2]
[329897277,1718803844920,-292.853427,0.0002918,2]
[329897278,1718803844930,-292.853427,0.0002918,2]
[329897279,1718803844939,-292.853427,0.0002918,2]
[329897280,1718803844950,-292.853427,0.0002918,2]
[329897281,1718803844960,-292.853427,0.0002918,2]
[329897282,1718803844970,-292.853427,0.0002918,2]
[329897283,1718803844979,-292.853427,0.0002918,2]
[329897284,1718803844989,-292.853427,0.0002918,2]
[329897285,1718803844998,-154.81422293,0.000292,2]
[329897286,1718803845008,-1000.0,0.0003,60]
[329897287,1718803845018,-469.99127,0.0003,4]
[329897288,1718803845027,-154.81422293,0.0003,4]
[329897289,1718803845036,-506.04363781,0.0003,2]
[329897290,1718803845046,-292.853427,0.00030002,2]
[329897291,1718803845056,-292.853427,0.00030002,2]
[329897292,1718803845067,-292.853427,0.00030002,2]
[329897293,1718803845078,-292.853427,0.00030002,2]
[329897294,1718803845087,-292.853427,0.00030002,2]
[329897295,1718803845098,-292.853427,0.00030002,2]
[329897296,1718803845108,-292.853427,0.00030002,2]
[329897297,1718803845118,-292.853427,0.00030002,2]
[329897298,1718803845127,-292.853427,0.00030002,2]
[329897299,1718803845137,-292.853427,0.00030002,2]
[329897300,1718803845147,-292.853427,0.00030002,2]
[329897301,1718803845160,-292.853427,0.00030002,2]
[329897302,1718803845172,-292.853427,0.00030002,2]
[329897303,1718803845182,-292.853427,0.00030002,2]
[329897304,1718803845191,-292.853427,0.00030002,2]
[329897305,1718803845202,-292.853427,0.00030002,2]
[329897306,1718803845211,-292.853427,0.00030002,2]
[329897307,1718803845220,-292.853427,0.00030002,2]
[329897308,1718803845230,-292.853427,0.00030002,2]
[329897309,1718803845240,-292.853427,0.00030002,2]
[329897310,1718803845250,-576.2595869,0.00030002,2]
[329897311,1718803845260,-153.0,0.00030824,2]
[329897312,1718803845270,-153.0,0.00030824,2]
[329897313,1718803845279,-153.0,0.00030824,2]
[329897314,1718803845290,-153.0,0.00030824,2]
[329897315,1718803845299,-153.0,0.00030824,2]
[329897316,1718803845309,-150.0,0.00031272,2]
[329897317,1718803845318,-205.5312875,0.00031647,2]
[329897318,1718803845328,-160.0,0.000329,8]
[329897319,1718803845337,-275.92715152,0.00032997,4]
[329897320,1718803845347,-231.77960924,0.00032998,30]
[329897321,1718803845356,-1435.3930521,0.00032998,4]
[329897322,1718803845366,-1066.63,0.00032999,2]
[329897323,1718803845375,-1066.63,0.00032999,2]
[329897324,1718803845384,-1066.63,0.00032999,2]
[329897325,1718803845393,-1066.63,0.00032999,2]
[329897326,1718803845403,-1066.63,0.00032999,2]
[329897327,1718803845412,-1066.63,0.00032999,2]
[329897328,1718803845422,-1066.63,0.00032999,2]
[329897329,1718803845431,-1066.63,0.00032999,2]
[329897330,1718803845441,-163911.26353097,0.00033,12]
[329897331,1718803845940,-1402.45,0.00033,12]
[329897332,1718803845966,-19849.89877815,0.00033,12]
[329897333,1718803845982,-10136.93295998,0.00033,12]
[329897334,1718803845996,-2250.92589944,0.00033,12]
[329897353,1718803847308,-292.853427,0.0002918,2]
[329897354,1718803847318,-35.211573,0.00033,12]
[329897356,1718804121684,159.64948019,9.999e-05,2]
[329897357,1718804130211,154.81422293,9.999e-05,2]
[329897358,1718804205106,373.31066865,9.999e-05,2]
[329897359,1718804216351,19329.17579556,9.999e-05,2]
[329897360,1718804222934,300.56413617,9.999e-05,2]
[329897363,1718804234354,8816.24783928,9.999e-05,2]
[329897364,1718804234378,4911.53181053,9.999e-05,2]
[329897365,1718804238943,300.43591381,9.999e-05,2]
[329897366,1718804297238,-262.40495483,0.0001612,2]
[329897367,1718804297259,-154.81422293,0.00016121,2]
[329897368,1718804297280,-286.21000119,0.00016122,2]
[329897369,1718804297303,-1232.97330707,0.00016123,2]
[329897370,1718804297325,-1566.8,0.00017604,2]
[329897371,1718804297348,-238.8,0.00017604,2]
[329897372,1718804297370,-300.0,0.0002,2]
[329897373,1718804297392,-167.30657264,0.0002,2]
[329897374,1718804297413,-509.45109603,0.00021088,2]
[329897375,1718804297434,-607.19060049,0.00021088,2]
[329897376,1718804297455,-675.0,0.00021096,2]
[329897377,1718804297476,-154.81422293,0.00021914,2]
[329897378,1718804297497,-33844.23502189,0.00021916,2]
[329897379,1718804396186,-607.19060049,0.000185,2]
[329897380,1718804396207,-159.64948019,0.0001904,2]
[329897381,1718804396228,-250.0,0.00019041,2]
[329897382,1718804396254,-42150.54498866,0.0002116,2]
[329897383,1718804396276,-6373.0130638,0.00021161,2]
[329897384,1718804396299,-167.30657264,0.00021914,2]
[329897385,1718804396322,-261.38759017,0.00021915,2]
[329897386,1718804396346,-903.74603191,0.00021916,2]
[329897387,1718804396367,-225.27800044,0.00021916,2]
[329897388,1718804396391,-2000.0,0.00021917,7]
[329897389,1718804396412,-2000.0,0.00021917,7]
[329897390,1718804396437,-465.11,0.00021917,7]
[329897391,1718804396457,-166.666666,0.00021918,2]
[329897392,1718804396478,-166.666666,0.00022431,2]
[329897393,1718804396499,-498.18634104,0.000225,2]
[329897394,1718804396520,-3000.0,0.00022601,2]
[329897395,1718804396541,-419.308644,0.00022699,2]
[329897396,1718804396562,-166.666666,0.00022944,2]
[329897397,1718804414298,225.27800044,0.00021916,2]
[329897398,1718804426650,1436.2,0.00017591,2]
[329897399,1718804432526,218.9,0.00017591,2]
[329897401,1718804665506,337.164054,0.00021096,2]
[329897402,1718804677337,453.4111541,0.00015396,2]
[329897403,1718804726110,1316.5,0.00017591,2]
[329897404,1718804731909,200.7,0.00017591,2]
[329897406,1718804830286,-167.30657264,0.00022943,2]
[329897407,1718804830311,-225.27800044,0.00022944,2]
[329897408,1718804830331,-206.87849834,0.00022944,2]
[329897409,1718804835108,-218.7235122,0.00022944,2]
[329897410,1718804837114,-156.13150691,0.00022944,2]
[329897415,1718804864771,209.654322,0.00015273,2]
[329897416,1718804866330,225.27800044,0.0002,2]
[329897417,1718804885209,330.43494397,0.00022,2]
[329897418,1718804968275,159.64948019,0.00021999,2]
[329897419,1718805023688,167.30657264,0.00021999,2]
[329897420,1718805026918,1118.80216088,0.00017592,2]
[329897466,1718805032373,-87.99783912,0.00017592,2]
[329897468,1718805032384,-225.27800044,0.00022,2]
[329897469,1718805032394,-209.654322,0.0002291,2]
[329897470,1718805032404,-180.89554408,0.00022944,2]
[329897471,1718805032414,-166.666666,0.00023058,2]
[329897472,1718805032424,-169.6960448,0.00023412,2]
[329897473,1718805032433,-166.666666,0.00023687,2]
[329897475,1718805032443,-166.666666,0.00024316,2]
[329897476,1718805032453,-250.0,0.00024547,2]
[329897477,1718805032466,-159.64948019,0.00024656,2]
[329897478,1718805032475,-42150.54498866,0.00024656,2]
[329897479,1718805032485,-538.82499447,0.00024657,5]
[329897480,1718805032497,-500.0,0.00024657,5]
[329897481,1718805032507,-3088.59996141,0.00024657,5]
[329897482,1718805032519,-545.87563572,0.00024657,5]
[329897483,1718805032532,-3062.21440287,0.00024657,5]
[329897484,1718805032544,-290.85109651,0.00024657,5]
[329897485,1718805032556,-523.21007097,0.00024657,5]
[329897486,1718805032565,-502.84946478,0.00024657,5]
[329897487,1718805032575,-500.0,0.00024657,5]
[329897488,1718805032584,-690.71,0.00024657,5]
[329897489,1718805032594,-500.0,0.00024657,5]
[329897490,1718805032604,-500.0,0.00024657,5]
[329897491,1718805032614,-500.0,0.00024657,5]
[329897492,1718805032624,-860.72,0.00024657,5]
[329897493,1718805032634,-500.0,0.00024657,5]
[329897494,1718805032644,-500.0,0.00024657,5]
[329897495,1718805032653,-500.0,0.00024657,5]
[329897496,1718805032663,-500.0,0.00024657,5]
[329897497,1718805032673,-500.0,0.00024657,5]
[329897498,1718805032682,-500.0,0.00024657,5]
[329897499,1718805032692,-500.0,0.00024657,5]
[329897500,1718805032701,-500.0,0.00024657,5]
[329897501,1718805032711,-500.0,0.00024657,5]
[329897502,1718805032721,-500.0,0.00024657,5]
[329897503,1718805032730,-500.0,0.00024657,5]
[329897504,1718805032740,-515.97076592,0.00024657,5]
[329897505,1718805032749,-500.0,0.00024657,5]
[329897506,1718805032759,-500.0,0.00024657,5]
[329897507,1718805032768,-538.13731705,0.00024657,5]
[329897508,1718805032778,-400.43073993,0.00024657,5]
[329897509,1718805032788,-500.0,0.00024657,5]
[329897510,1718805032798,-500.0,0.00024657,5]
[329897511,1718805032807,-500.0,0.00024657,5]
[329897512,1718805032817,-500.0,0.00024657,5]
[329897513,1718805032827,-500.0,0.00024657,5]
[329897514,1718805032839,-500.0,0.00024657,5]
[329897515,1718805032849,-500.0,0.00024657,5]
[329897516,1718805032859,-500.0,0.00024657,5]
[329897517,1718805032869,-538.57,0.00024657,5]
[329897518,1718805032878,-500.0,0.00024657,5]
[329897519,1718805032888,-578.16,0.00024657,5]
[329897520,1718805032898,-500.0,0.00024657,5]
[329897521,1718805032908,-539.38984619,0.00024657,5]
[329897522,1718805032918,-500.0,0.00024657,5]
[329897523,1718805032927,-500.0,0.00024657,5]
[329897524,1718805032939,-500.0,0.00024657,5]
[329897525,1718805032949,-500.0,0.00024657,5]
[329897526,1718805032958,-500.0,0.00024657,5]
[329897527,1718805032967,-500.0,0.00024657,5]
[329897528,1718805032977,-500.0,0.00024657,5]
[329897529,1718805032987,-526.31069258,0.00024657,5]
[329897530,1718805032996,-500.0,0.00024657,5]
[329897531,1718805033007,-535.00927245,0.00024657,5]
[329897532,1718805033017,-155.01550155,0.00024748,2]
[329897533,1718805033027,-435.91304841,0.00024896,2]
[329897534,1718805033036,-500.0,0.00024931,5]
[329897535,1718805033046,-6696.69,0.00024931,5]
[329897536,1718805033056,-630.77825948,0.00024931,5]
[329897537,1718805033066,-500.0,0.00024931,5]
[329897538,1718805033076,-690.71,0.00024931,5]
[329897539,1718805033086,-500.0,0.00024931,5]
[329897540,1718805033095,-500.0,0.00024931,5]
[329897541,1718805033105,-500.0,0.00024931,5]
[329897542,1718805033115,-860.72,0.00024931,5]
[329897543,1718805033124,-500.0,0.00024931,5]
[329897544,1718805033134,-500.0,0.00024931,5]
[329897545,1718805033144,-500.0,0.00024931,5]
[329897546,1718805033153,-500.0,0.00024931,5]
[329897547,1718805033163,-500.0,0.00024931,5]
[329897548,1718805033172,-500.0,0.00024931,5]
[329897549,1718805033183,-500.0,0.00024931,5]
[329897550,1718805033193,-500.0,0.00024931,5]
[329897551,1718805033202,-500.0,0.00024931,5]
[329897552,1718805033211,-500.0,0.00024931,5]
[329897553,1718805033221,-500.0,0.00024931,5]
[329897554,1718805033231,-500.0,0.00024931,5]
[329897555,1718805033242,-500.0,0.00024931,5]
[329897556,1718805033251,-500.0,0.00024931,5]
[329897557,1718805033261,-500.0,0.00024931,5]
[329897558,1718805033271,-500.0,0.00024931,5]
[329897559,1718805033281,-502.50623745,0.00024931,5]
[329897560,1718805033291,-509.69812858,0.00024931,5]
[329897561,1718805033301,-538.57,0.00024931,5]
[329897562,1718805033311,-578.16,0.00024931,5]
[329897563,1718805033320,-500.0,0.00024931,5]
[329897564,1718805033330,-500.0,0.00024931,5]
[329897565,1718805033340,-500.0,0.00024931,5]
[329897566,1718805033350,-500.0,0.00024931,5]
[329897567,1718805033359,-500.0,0.00024931,5]
[329897568,1718805033369,-508.80236842,0.00024931,5]
[329897569,1718805033379,-500.0,0.00024931,5]
[329897570,1718805033388,-263.84374899,0.00024931,5]
[329897571,1718805033397,-166.666666,0.00024944,2]
[329897572,1718805033408,-691.52,0.0002499,3]
[329897573,1718805033418,-500.0,0.00024996,2]
[329897574,1718805033427,-500.0,0.00024996,2]
[329897575,1718805033436,-500.0,0.00024996,2]
[329897576,1718805033446,-500.0,0.00024996,2]
[329897577,1718805033458,-500.0,0.00024996,2]
[329897578,1718805033468,-500.0,0.00024996,2]
[329897579,1718805033478,-394.18560778,0.00024996,2]
[329897580,1718805033489,-500.0,0.00024996,2]
[329897581,1718805033499,-500.0,0.00024996,2]
[329897582,1718805033509,-500.0,0.00024996,2]
[329897583,1718805033518,-443.51353209,0.00024996,2]
[329897584,1718805033642,-500.0,0.00024996,5]
[329897585,1718805033653,-2227.96,0.00024996,5]
[329897586,1718805033663,-500.0,0.00024996,5]
[329897587,1718805033673,-285.66607595,0.00024998,2]
[329897588,1718805033682,-156.19409073,0.00024998,2]
[329897589,1718805033692,-156.42344622,0.00024998,2]
[329897590,1718805033702,-500.0,0.00024998,5]
[329897591,1718805033711,-659.97,0.00024998,5]
[329897592,1718805033722,-248.81549312,0.00024998,5]
[329897593,1718805033731,-507.42722885,0.00024998,5]
[329897594,1718805033742,-500.0,0.00024998,5]
[329897595,1718805033751,-528.33980179,0.00024998,5]
[329897596,1718805033760,-500.0,0.00024998,5]
[329897597,1718805033769,-500.0,0.00024998,5]
[329897598,1718805033778,-505.41905001,0.00024998,5]
[329897599,1718805033788,-500.0,0.00024998,5]
[329897600,1718805033798,-500.0,0.00024998,5]
[329897601,1718805033807,-500.0,0.00024998,5]
[329897602,1718805033817,-500.0,0.00024998,5]
[329897603,1718805033826,-500.0,0.00024998,5]
[329897604,1718805033836,-500.0,0.00024998,5]
[329897605,1718805033845,-500.0,0.00024998,2]
[329897606,1718805033855,-500.0,0.00024998,5]
[329897607,1718805033864,-500.0,0.00024998,5]
[329897608,1718805033874,-500.0,0.00024998,5]
[329897609,1718805033883,-500.0,0.00024998,5]
[329897610,1718805033893,-500.0,0.00024998,5]
[329897611,1718805033903,-500.0,0.00024998,5]
[329897612,1718805033912,-155.52633431,0.00024999,2]
[329897613,1718805033923,-256.36828719,0.00024999,2]
[329897614,1718805033934,-500.0,0.00024999,5]
[329897615,1718805033944,-500.0,0.00024999,5]
[329897616,1718805033954,-630.63637782,0.00024999,5]
[329897617,1718805033964,-500.0,0.00024999,5]
[329897618,1718805033975,-765.15,0.00024999,5]
[329897619,1718805033986,-265.70130268,0.00024999,5]
[329897620,1718805033997,-500.0,0.00024999,5]
[329897621,1718805034007,-500.0,0.00024999,5]
[329897622,1718805034017,-500.0,0.00024999,5]
[329897623,1718805034028,-500.0,0.00024999,5]
[329897624,1718805034038,-500.0,0.00024999,5]
[329897625,1718805034048,-500.0,0.00024999,5]
[329897626,1718805034058,-500.0,0.00024999,5]
[329897627,1718805034067,-500.0,0.00024999,5]
[329897628,1718805034077,-615.20592087,0.00024999,5]
[329897629,1718805034087,-402.10409234,0.00025,2]
[329897630,1718805034096,-615.37066309,0.00025,2]
[329897631,1718805034106,-66379.84794466,0.00025,120]
[329897632,1718805034115,-500.0,0.00025205,5]
[329897633,1718805034125,-6696.69,0.00025205,5]
[329897634,1718805034135,-500.0,0.00025205,5]
[329897635,1718805034145,-690.71,0.00025205,5]
[329897636,1718805034156,-500.0,0.00025205,5]
[329897637,1718805034165,-500.0,0.00025205,5]
[329897638,1718805034175,-500.0,0.00025205,5]
[329897639,1718805034184,-860.72,0.00025205,5]
[329897640,1718805034194,-510.13152189,0.00025205,5]
[329897641,1718805034203,-500.0,0.00025205,5]
[329897642,1718805034213,-500.0,0.00025205,5]
[329897643,1718805034223,-500.0,0.00025205,5]
[329897644,1718805034232,-500.0,0.00025205,5]
[329897645,1718805034243,-500.0,0.00025205,5]
[329897646,1718805034252,-500.0,0.00025205,5]
[329897647,1718805034261,-513.42622185,0.00025205,5]
[329897648,1718805034271,-500.0,0.00025205,5]
[329897649,1718805034280,-500.0,0.00025205,5]
[329897650,1718805034289,-500.0,0.00025205,5]
[329897651,1718805034298,-436.09599501,0.00025205,5]
[329897652,1718805034308,-500.0,0.00025205,5]
[329897653,1718805034317,-500.0,0.00025205,5]
[329897654,1718805034327,-538.57,0.00025205,5]
[329897655,1718805034337,-578.16,0.00025205,5]
[329897656,1718805034347,-500.0,0.00025205,5]
[329897657,1718805034356,-500.0,0.00025205,5]
[329897658,1718805034366,-500.0,0.00025205,5]
[329897659,1718805034375,-500.0,0.00025205,5]
[329897660,1718805034385,-175.91829505,0.0002527,5]
[329897661,1718805034395,-2227.96,0.0002527,5]
[329897662,1718805034404,-500.0,0.0002527,5]
[329897663,1718805034414,-500.0,0.00025272,5]
[329897664,1718805034423,-659.97,0.00025272,5]
[329897665,1718805034432,-500.0,0.00025272,5]
[329897666,1718805034442,-500.0,0.00025272,5]
[329897667,1718805034452,-500.0,0.00025272,5]
[329897668,1718805034465,-500.0,0.00025272,5]
[329897669,1718805034474,-500.0,0.00025272,5]
[329897670,1718805034483,-500.0,0.00025272,5]
[329897671,1718805034496,-500.0,0.00025272,5]
[329897672,1718805034506,-500.0,0.00025272,2]
[329897673,1718805034515,-500.0,0.00025272,5]
[329897674,1718805034524,-500.0,0.00025272,5]